bitfinex-derivatives/quotes_BNBF0:USTF0_20250507
["timestamp","ask_amount","ask_price","bid_price","bid_amount"]
[1746604820067,0.32886623,608.15,605.53,2.45628916]
[1746604820459,0.30284492,608.14,605.53,2.45628916]
[1746604820658,0.30284492,608.13,605.53,2.45628916]
[1746604820958,0.63172737,608.12,605.53,2.45628916]
[1746604821360,0.32889327,608.1,605.53,2.45628916]
[1746604821864,0.30284492,608.09,605.53,2.45628916]
[1746604822065,0.3289095,608.07,605.53,2.45628916]
[1746604822463,0.30284492,608.06,605.53,2.45628916]
[1746604822663,0.32892572,608.04,605.53,2.45628916]
[1746604823064,0.30284492,608.03,605.53,2.45628916]
[1746604823264,0.32894195,608.01,605.53,2.45628916]
[1746604823460,0.30284492,608.0,605.53,2.45628916]
[1746604823661,0.32895818,607.98,605.53,3.03928916]
[1746604824266,0.30284492,607.97,605.53,3.03928916]
[1746604825266,0.32897442,607.95,605.53,3.03928916]
[1746604825661,0.30284492,607.94,605.53,3.03928916]
[1746604825866,0.32899065,607.92,605.53,3.03928916]
[1746604826261,0.30284492,607.91,605.53,3.03928916]
[1746604826567,0.32900689,607.89,605.53,3.03928916]
[1746604827267,0.30284492,607.88,605.53,3.03928916]
[1746604827468,0.32902313,607.86,605.53,3.03928916]
[1746604827766,0.30284492,607.85,605.53,3.03928916]
[1746604827964,0.32903936,607.83,605.53,3.03928916]
[1746604828467,0.30284492,607.82,605.53,3.03928916]
[1746604828668,0.32905019,607.81,605.53,3.03928916]
[1746604828968,0.63189511,607.81,605.53,3.03928916]
[1746604829367,0.30284492,607.8,605.53,3.03928916]
[1746604829567,0.63190594,607.79,605.53,3.03928916]
[1746604829768,0.32906643,607.78,605.53,3.03928916]
[1746604829967,0.63191135,607.78,605.53,3.03928916]
[1746604830167,0.30284492,607.77,605.53,3.03928916]
[1746604830369,0.32907726,607.76,605.53,3.03928916]
[1746604830565,0.30284492,607.75,605.53,3.03928916]
[1746604830771,0.32908809,607.74,605.53,3.03928916]
[1746604831073,0.63193301,607.74,605.53,3.03928916]
[1746604831270,0.30284492,607.73,605.53,3.03928916]
[1746604831470,0.32909892,607.72,605.53,3.03928916]
[1746604831674,0.30283905,607.71,605.53,3.03928916]
[1746604831867,0.32910975,607.7,605.53,3.03928916]
[1746604832071,0.6319488,607.7,605.53,3.03928916]
[1746604832266,0.30283905,607.69,605.53,3.03928916]
[1746604832567,0.32912058,607.68,605.53,3.03928916]
[1746604832866,0.63195963,607.68,605.53,3.03928916]
[1746604833171,0.30283905,607.67,605.53,3.03928916]
[1746604833367,0.63196505,607.67,605.53,3.03928916]
[1746604833574,0.30283905,607.66,605.53,3.03928916]
[1746604833976,0.30283905,607.66,605.62,1.04504492]
[1746604834175,0.30283905,607.66,605.72,0.33018556]
[1746604834371,0.329126,607.67,605.72,0.33018556]
[1746604834769,0.30283905,607.66,605.72,0.33018556]
[1746604835380,0.32913683,607.65,605.72,0.33018556]
[1746604835776,0.30283905,607.64,605.72,0.33018556]
[1746604835976,0.6319813,607.64,605.72,0.33018556]
[1746604836378,0.30283905,607.63,605.72,0.33018556]
[1746604837079,0.63198672,607.63,605.72,0.33018556]
[1746604837478,0.30283905,607.62,605.72,0.33018556]
[1746604842882,0.3291585,607.61,605.72,0.33018556]
[1746604843084,0.30283905,607.6,605.72,0.33018556]
[1746604843378,0.32916934,607.59,605.72,0.33018556]
[1746604843782,0.30283905,607.58,605.72,0.33018556]
[1746604843983,0.32918017,607.57,605.72,0.33018556]
[1746604844483,0.30283905,607.56,605.72,0.33018556]
[1746604844984,0.32919101,607.55,605.72,0.33018556]
[1746604845483,0.30283905,607.54,605.72,0.33018556]
[1746604845883,0.30283905,607.54,605.73,0.565]
[1746604848185,0.30283905,607.54,605.75,0.33016921]
[1746604848380,0.32920185,607.53,605.75,0.33016921]
[1746604848784,0.30283905,607.52,605.75,0.33016921]
[1746604849483,0.32921268,607.51,605.75,0.33016921]
[1746604849882,0.30283905,607.5,605.75,0.33016921]
[1746604850185,0.32922352,607.49,605.75,0.33016921]
[1746604850586,0.30283905,607.48,605.75,0.33016921]
[1746604851682,0.32923436,607.47,605.75,0.33016921]
[1746604851985,0.30283905,607.46,605.75,0.33016921]
[1746604854686,0.30283905,607.46,605.76,0.582]
[1746604860095,0.32923436,607.47,605.76,0.582]
[1746604860295,0.30296364,607.46,605.76,0.582]
[1746604862399,0.30296364,607.46,605.77,0.746]
[1746604871307,0.32923436,607.47,605.77,0.746]
[1746604871907,0.30282591,607.46,605.77,0.746]
[1746604872207,0.32923436,607.47,605.77,0.746]
[1746604872606,0.32923436,607.47,605.79,0.33014741]
[1746604873006,0.30282316,607.46,605.79,0.33014741]
[1746604873207,0.32923436,607.47,605.79,0.33014741]
[1746604878410,0.30280424,607.46,605.79,0.33014741]
[1746604881614,0.32923436,607.47,605.79,0.33014741]
[1746604881809,0.30281803,607.46,605.79,0.33014741]
[1746604883914,0.30281803,607.46,605.79,1.05414741]
[1746604888613,0.32923436,607.47,605.79,1.05414741]
[1746604889114,0.30279567,607.46,605.79,1.05414741]
[1746604890014,0.32923436,607.47,605.79,1.05414741]
[1746604893724,0.32923436,607.47,605.79,1.71214741]
[1746604899524,1.26051665,608.84,605.79,1.71214741]
[1746604899827,0.28670292,607.73,605.79,1.71214741]
[1746604900022,0.30272929,607.72,605.79,1.71214741]
[1746604900426,1.26051665,608.58,605.79,1.71214741]
[1746604900627,0.30272929,608.57,605.79,1.71214741]
[1746604900828,0.28658368,607.71,605.79,1.71214741]
[1746604901126,0.30272929,608.56,605.79,1.71214741]
[1746604901327,0.28659784,607.71,605.79,1.71214741]
[1746604901629,1.26051665,608.48,605.79,1.71214741]
[1746604901827,0.30272929,607.7,605.79,1.71214741]
[1746604902029,0.30272929,607.73,605.79,1.71214741]
[1746604902730,0.28668874,607.74,605.79,1.71214741]
[1746604903226,0.30270274,607.73,605.79,1.71214741]
[1746604908130,0.28668874,607.74,605.79,1.71214741]
[1746604908431,0.30270149,607.73,605.79,1.71214741]
[1746604908731,0.30270149,608.27,605.79,1.71214741]
[1746604908932,0.28661319,607.79,605.79,1.71214741]
[1746604909334,0.30270149,608.26,605.79,1.71214741]
[1746604909532,0.30270149,607.78,605.79,1.71214741]
[1746604909936,0.30270149,608.26,605.79,1.71214741]
[1746604910236,0.30270149,608.25,605.79,1.71214741]
[1746604910438,0.58931586,608.25,605.79,1.71214741]
[1746604910638,0.30270149,608.24,605.79,1.71214741]
[1746604911031,0.30270149,608.23,605.79,1.71214741]
[1746604911638,0.30270149,608.22,605.79,1.71214741]
[1746604911937,0.30270149,608.21,605.79,1.71214741]
[1746604912338,0.3288446,608.19,605.79,1.71214741]
[1746604912839,0.30270149,608.18,605.79,1.71214741]
[1746604913038,0.30270149,608.17,605.79,1.71214741]
[1746604913237,0.30270149,608.16,605.79,1.71214741]
[1746604913538,0.32887164,608.14,605.79,1.71214741]
[1746604914137,0.30269762,608.13,605.79,1.71214741]
[1746604914333,0.32888786,608.11,605.79,1.71214741]
[1746604914737,0.28663089,608.1,605.79,1.71214741]
[1746604915037,0.32889868,608.09,605.79,1.71214741]
[1746604915233,0.6315963,608.09,605.79,2.33314741]
[1746604915432,0.30269762,608.08,605.79,2.33314741]
[1746604915637,0.3289095,608.07,605.79,2.33314741]
[1746604915833,0.63160712,608.07,605.79,2.33314741]
[1746604916134,0.30269762,608.06,605.79,2.33314741]
[1746604916439,0.32892031,608.05,605.79,2.33314741]
[1746604916639,0.63161793,608.05,605.79,2.33314741]
[1746604916840,0.30269762,608.04,605.79,2.33314741]
[1746604917135,0.32893113,608.03,605.79,2.33314741]
[1746604917340,0.63162875,608.03,605.79,2.33314741]
[1746604917639,0.30269762,608.02,605.79,2.33314741]
[1746604917939,0.58935685,608.02,605.79,3.13114741]
[1746604918341,0.30269762,608.01,605.79,3.13114741]
[1746604921044,0.28667694,608.0,605.79,3.13114741]
[1746604921646,0.32895818,607.98,605.79,3.13114741]
[1746604921848,0.30269762,607.97,605.79,3.13114741]
[1746604922041,0.32896901,607.96,605.79,3.13114741]
[1746604922647,0.30269762,607.95,605.79,3.13114741]
[1746604924047,0.28668166,607.94,605.79,3.13114741]
[1746604924247,0.30269762,607.93,605.79,3.13114741]
[1746604926944,0.28668402,607.92,605.79,3.13114741]
[1746604927648,0.30269762,607.91,605.79,3.13114741]
[1746604929848,0.28668402,607.9,605.79,3.13114741]
[1746604930248,0.30269762,607.89,605.79,3.13114741]
[1746604931950,0.28668402,607.9,605.79,3.13114741]
[1746604932148,0.30273503,607.89,605.79,3.13114741]
[1746604932953,0.2866793,607.88,605.79,3.13114741]
[1746604933254,0.30273503,607.87,605.79,3.13114741]
[1746604935854,0.61569298,607.86,605.79,3.13114741]
[1746604936057,0.32902854,607.85,605.79,3.13114741]
[1746604936553,0.30273503,607.84,605.79,3.13114741]
[1746604937351,0.32902854,607.85,605.79,3.13114741]
[1746604938054,0.3027315,607.84,605.79,3.13114741]
[1746604938755,0.28668284,607.83,605.79,3.13114741]
[1746604938954,0.3027315,607.82,605.79,3.13114741]
[1746604941457,0.28668284,607.83,605.79,3.13114741]
[1746604941657,0.30273197,607.82,605.79,3.13114741]
[1746604941858,0.2866852,607.81,605.79,3.13114741]
[1746604942054,0.30273197,607.8,605.79,3.13114741]
[1746604943455,0.30273197,607.8,605.79,4.17619233]
[1746604945556,0.30273197,607.8,605.83,1.04504492]
[1746604947655,0.30273197,607.8,605.79,1.74914741]
[1746604947859,0.28671355,607.79,605.8,0.28671355]
[1746604948154,0.30273197,607.78,605.8,0.28671355]
[1746604949055,0.30273197,607.78,605.8,0.86871355]
[1746604949959,0.30273197,607.78,605.8,1.39571355]
[1746604950463,0.30273197,607.78,605.8,1.109]
[1746604950761,0.28671945,607.77,605.8,1.39571945]
[1746604950960,0.30273197,607.76,605.8,1.39571945]
[1746604953460,0.30273197,607.76,605.8,1.109]
[1746604953656,0.30273197,607.84,605.8,1.109]
[1746604953861,0.28672181,607.75,605.8,1.39572181]
[1746604954067,0.30273197,607.84,605.8,1.39572181]
[1746604954263,0.30273197,607.74,605.8,1.39572181]
[1746604954563,0.30273197,607.73,605.8,1.39572181]
[1746604954864,0.30273197,607.84,605.8,1.39572181]
[1746604955264,0.28671236,607.83,605.8,1.39572181]
[1746604955465,0.30273197,607.82,605.8,1.39572181]
[1746604956567,0.30273197,607.82,605.8,1.109]
[1746604956766,0.30273197,607.84,605.8,1.109]
[1746604956963,0.28671236,607.81,605.8,1.39571236]
[1746604957163,0.30273197,607.8,605.8,1.39571236]
[1746604957962,0.30273197,607.8,605.8,0.28671236]
[1746604959066,0.30273197,607.79,605.8,0.28671236]
[1746604959362,0.30273197,607.78,605.8,0.28671236]
[1746604959567,0.30273197,607.77,605.79,0.33014741]
[1746604959767,0.30273197,607.76,605.8,0.28671827]
[1746604959963,0.30273197,607.75,605.8,0.28671827]
[1746604960267,0.32908809,607.74,605.82,0.33013106]
[1746604960466,0.3028171,607.73,605.82,0.33013106]
[1746604960668,0.32909892,607.72,605.82,0.33013106]
[1746604960963,0.3028171,607.71,605.82,0.33013106]
[1746604961169,0.63192144,607.71,605.82,0.33013106]
[1746604961363,0.3028171,607.7,605.82,0.33013106]
[1746604961968,0.32910434,607.71,605.83,0.803]
[1746604962164,0.30281739,607.7,605.85,0.33011471]
[1746604962564,0.30281739,607.7,605.86,1.515]
[1746604962763,0.30281739,607.7,605.88,0.33009836]
[1746604963066,0.28672181,607.69,605.88,0.33009836]
[1746604963367,0.30281739,607.68,605.89,0.746]
[1746604963571,0.30281739,607.68,605.91,0.33008202]
[1746604965971,0.32910434,607.71,605.91,0.33008202]
[1746604965972,0.30281739,607.7,605.91,0.33008202]
[1746604966174,0.58953566,607.67,605.91,0.33008202]
[1746604966374,0.28671827,607.67,605.91,0.33008202]
[1746604966675,0.30281739,607.66,605.91,0.33008202]
[1746604971279,0.32913683,607.65,605.91,0.33008202]
[1746604971680,0.30281739,607.64,605.91,0.33008202]
[1746604971880,0.32914767,607.63,605.91,0.33008202]
[1746604972482,0.30281739,607.62,605.91,0.33008202]
[1746604974386,0.3291585,607.61,605.91,0.33008202]
[1746604974784,0.30287075,607.6,605.91,0.33008202]
[1746604974983,0.32916934,607.59,605.91,0.33008202]
[1746604975381,0.30287075,607.58,605.91,0.33008202]
[1746604975680,0.32918017,607.57,605.91,0.33008202]
[1746604975884,0.30287075,607.56,605.91,0.33008202]
[1746604976579,0.32919101,607.55,605.91,0.33008202]
[1746604977086,0.30287075,607.54,605.91,0.33008202]
[1746604977284,0.63206718,607.54,605.91,0.33008202]
[1746604977786,0.30287075,607.53,605.91,0.33008202]
[1746604977983,0.58965163,607.53,605.91,0.33008202]
[1746604978285,0.30287075,607.52,605.91,0.33008202]
[1746604980781,0.30287075,607.53,605.91,0.33008202]
[1746604980979,0.28678088,607.51,605.91,0.33008202]
[1746604981584,0.30287075,607.5,605.91,0.33008202]
[1746604982685,0.28678088,607.51,605.91,0.33008202]
[1746604982984,0.3028719,607.5,605.91,0.33008202]
[1746604983787,0.28678088,607.49,605.91,0.33008202]
[1746604984188,0.3028719,607.48,605.91,0.33008202]
[1746604984388,0.28678088,607.49,605.91,0.33008202]
[1746604985291,0.28678088,607.49,605.91,0.95608202]
[1746604986591,0.32919643,607.54,605.91,0.95608202]
[1746604986893,0.30282264,607.48,605.91,0.95608202]
[1746604987292,0.32919643,607.54,605.91,0.95608202]
[1746604988092,0.32919643,607.54,605.91,1.60408202]
[1746604988289,0.30276891,607.53,605.91,1.60408202]
[1746604988791,0.30276891,607.65,605.91,1.60408202]
[1746604990591,0.30276891,607.7,605.91,1.60408202]
[1746604990797,0.30276891,607.64,605.91,1.60408202]
[1746604990995,0.30276891,607.64,605.91,2.16008202]
[1746604991296,0.28667339,607.76,605.91,2.16008202]
[1746604991496,0.30276891,607.75,605.91,2.16008202]
[1746604995698,0.30276891,608.26,605.91,2.16008202]
[1746604995894,0.28668874,607.74,605.91,2.16008202]
[1746604996199,0.32881757,608.24,605.91,2.16008202]
[1746604996696,0.30275534,608.23,605.91,2.16008202]
[1746604997099,0.32883379,608.21,605.91,2.16008202]
[1746604997400,0.30275534,608.2,605.91,2.16008202]
[1746604997596,0.30275534,608.19,605.91,2.16008202]
[1746604997795,0.30275534,608.18,605.91,2.16008202]
[1746604997995,0.30275534,608.17,605.91,2.16008202]
[1746604998198,0.30275534,608.16,605.91,2.16008202]
[1746604998398,0.30275534,608.15,605.91,2.16008202]
[1746604998600,0.30275534,608.14,605.91,2.16008202]
[1746604998897,0.30275534,608.13,605.91,2.16008202]
[1746604999101,0.30275534,608.12,605.91,2.16008202]
[1746604999298,0.30275534,608.11,605.91,2.16008202]
[1746604999506,0.30275534,608.1,605.91,2.16008202]
[1746604999701,0.30275534,608.09,605.91,2.16008202]
[1746604999901,0.30275534,608.08,605.91,2.16008202]
[1746605000105,0.30275534,608.07,605.91,2.16008202]
[1746605000402,0.30275534,608.06,605.91,2.16008202]
[1746605000604,0.30275534,608.05,605.91,2.16008202]
[1746605000803,0.30275534,608.04,605.91,2.16008202]
[1746605001003,0.30275534,608.03,605.91,2.16008202]
[1746605001299,0.30275534,608.02,605.91,2.16008202]
[1746605001699,0.30275534,608.01,605.91,2.16008202]
[1746605001903,0.30275534,608.0,605.91,2.16008202]
[1746605002104,0.30275534,607.99,605.91,2.16008202]
[1746605002499,0.30275534,607.98,605.91,2.16008202]
[1746605002703,0.30275534,607.98,605.91,2.89108202]
[1746605002903,0.3289636,607.97,605.91,2.89108202]
[1746605003704,0.30275534,607.96,605.91,2.89108202]
[1746605004908,0.28666395,607.95,605.91,2.89108202]
[1746605005101,0.30275534,607.94,605.91,2.89108202]
[1746605007910,0.28669701,607.93,605.91,2.89108202]
[1746605008205,0.30275534,607.92,605.91,2.89108202]
[1746605009109,0.28669701,607.93,605.91,2.89108202]
[1746605009410,0.30280238,607.92,605.91,2.89108202]
[1746605010810,0.30280238,607.96,605.91,2.89108202]
[1746605011010,0.28669937,607.91,605.91,2.89108202]
[1746605011612,0.32900689,607.89,605.91,2.89108202]
[1746605011810,0.30280238,607.88,605.91,2.89108202]
[1746605013813,0.28668756,607.87,605.91,2.89108202]
[1746605014214,0.30280238,607.86,605.91,2.89108202]
[1746605015017,0.32902854,607.85,605.91,2.89108202]
[1746605015316,0.30280238,607.84,605.91,2.89108202]
[1746605015617,0.32903936,607.83,605.91,2.89108202]
[1746605015915,0.30280238,607.82,605.91,2.89108202]
[1746605016115,0.32905019,607.81,605.91,2.89108202]
[1746605016614,0.30280238,607.8,605.91,2.89108202]
[1746605017016,0.58949821,607.8,605.91,2.89108202]
[1746605017314,0.30280238,607.79,605.91,2.89108202]
[1746605017514,0.28669583,607.8,605.91,2.89108202]
[1746605017715,0.32906102,607.79,605.91,2.89108202]
[1746605017916,0.63186086,607.79,605.91,2.89108202]
[1746605018109,0.30279984,607.78,605.91,2.89108202]
[1746605018414,0.32907185,607.77,605.91,2.89108202]
[1746605019016,0.30279984,607.76,605.91,2.89108202]
[1746605019417,0.32908268,607.75,605.91,2.89108202]
[1746605019617,0.30279984,607.74,605.91,2.89108202]
[1746605020317,0.32908268,607.75,605.91,2.89108202]
[1746605020618,0.30280166,607.74,605.91,2.89108202]
[1746605025923,0.58952229,607.73,605.91,2.89108202]
[1746605026223,0.30280166,607.72,605.91,2.89108202]
[1746605027023,0.32910434,607.71,605.91,2.89108202]
[1746605027416,0.30280166,607.7,605.91,2.89108202]
[1746605027621,0.32911517,607.69,605.91,2.89108202]
[1746605028125,0.30280166,607.68,605.91,2.89108202]
[1746605028421,0.329126,607.67,605.91,2.89108202]
[1746605029027,0.58955182,607.66,605.91,2.89108202]
[1746605029226,0.63193849,607.65,605.91,2.89108202]
[1746605029430,0.32914225,607.64,605.91,2.89108202]
[1746605029630,0.63194391,607.64,605.91,2.89108202]
[1746605029927,0.30280166,607.63,605.91,2.89108202]
[1746605030226,0.32914225,607.64,605.91,2.89108202]
[1746605030528,0.30286954,607.63,605.91,2.89108202]
[1746605031927,0.61591979,607.62,605.91,2.89108202]
[1746605032122,0.63202804,607.61,605.91,2.89108202]
[1746605032327,0.63203346,607.6,605.91,2.89108202]
[1746605032527,0.32916934,607.59,605.91,2.89108202]
[1746605032727,0.63203888,607.59,605.91,2.89108202]
[1746605033026,0.30286954,607.58,605.91,2.89108202]
[1746605034930,0.28677498,607.57,605.91,2.89108202]
[1746605035225,0.30286954,607.56,605.91,2.89108202]
[1746605037929,0.28680097,607.55,605.91,2.89108202]
[1746605038233,0.30286954,607.54,605.91,2.89108202]
[1746605040638,0.32920185,607.53,605.91,2.89108202]
[1746605041138,0.30286954,607.52,605.91,2.89108202]
[1746605041638,0.32921268,607.51,605.91,2.89108202]
[1746605042039,0.30286954,607.5,605.91,2.89108202]
[1746605042942,0.32922352,607.49,605.91,2.89108202]
[1746605043343,0.30286954,607.48,605.91,2.89108202]
[1746605043739,0.32923436,607.47,605.91,2.89108202]
[1746605043939,0.30286954,607.46,605.91,2.89108202]
[1746605046042,0.61603533,607.47,605.91,2.89108202]
[1746605046342,0.30292113,607.46,605.91,2.89108202]
[1746605046942,0.28680334,607.45,605.91,2.89108202]
[1746605047242,0.30292113,607.44,605.91,2.89108202]
[1746605047738,0.28680334,607.45,605.91,2.89108202]
[1746605048042,0.30292096,607.44,605.91,2.89108202]
[1746605049740,0.32923436,607.47,605.91,2.89108202]
[1746605049945,0.2868057,607.43,605.91,2.89108202]
[1746605050144,0.30292096,607.42,605.91,2.89108202]
[1746605052743,0.30292096,607.46,605.91,2.89108202]
[1746605052944,0.28680334,607.41,605.91,2.89108202]
[1746605053144,0.30292096,607.4,605.91,2.89108202]
[1746605055748,0.30292096,607.46,605.91,2.89108202]
[1746605055947,0.28680334,607.39,605.91,2.89108202]
[1746605056144,0.30292096,607.38,605.91,2.89108202]
[1746605057045,0.28680334,607.39,605.91,2.89108202]
[1746605057748,0.30291964,607.38,605.91,2.89108202]
[1746605059057,0.28680334,607.37,605.91,2.89108202]
[1746605059455,0.30291964,607.36,605.91,2.89108202]
[1746605061956,0.30291964,607.46,605.91,2.89108202]
[1746605062159,0.28680334,607.35,605.91,2.89108202]
[1746605062358,0.30291964,607.46,605.91,2.89108202]
[1746605062557,0.30291964,607.34,605.91,2.89108202]
[1746605062857,0.30291964,607.46,605.91,2.89108202]
[1746605063655,0.28680334,607.45,605.91,2.89108202]
[1746605063854,0.30291964,607.44,605.91,2.89108202]
[1746605064756,0.30291964,607.44,605.91,2.24308202]
[1746605065060,0.2868057,607.43,605.91,1.68708202]
[1746605065359,0.32926146,607.42,605.91,1.68708202]
[1746605065654,0.30291964,607.41,605.91,1.68708202]
[1746605066158,0.3292723,607.4,605.91,1.68708202]
[1746605066555,0.30291964,607.39,605.91,1.68708202]
[1746605067353,0.30291964,607.39,605.91,0.33008202]
[1746605067859,0.28682934,607.38,605.91,0.33008202]
[1746605068359,0.30291964,607.37,605.91,0.33008202]
[1746605070863,0.2868317,607.36,605.91,0.33008202]
[1746605071563,0.30291964,607.35,605.91,0.33008202]
[1746605073960,0.28686954,607.34,605.91,0.33008202]
[1746605074165,0.30291964,607.33,605.91,0.33008202]
[1746605076859,0.28683643,607.32,605.91,0.33008202]
[1746605077265,0.30291964,607.31,605.91,0.33008202]
[1746605078866,0.28683643,607.32,605.91,0.33008202]
[1746605079261,0.30296796,607.31,605.91,0.33008202]
[1746605080166,0.28686954,607.3,605.91,0.33008202]
[1746605080468,0.30296796,607.29,605.91,0.33008202]
[1746605081567,0.28686954,607.3,605.91,0.33008202]
[1746605081769,0.30299423,607.29,605.91,0.33008202]
[1746605082568,0.32933737,607.28,605.91,0.33008202]
[1746605082968,0.28691566,607.27,605.91,0.33008202]
[1746605083172,0.58990989,607.27,605.91,0.33008202]
[1746605083469,0.30299423,607.26,605.91,0.33008202]
[1746605085165,0.28691566,607.27,605.91,0.33008202]
[1746605085365,0.30306869,607.26,605.91,0.33008202]
[1746605085867,0.286892,607.25,605.91,0.33008202]
[1746605086069,0.30306869,607.24,605.91,0.33008202]
[1746605087269,0.32936449,607.23,605.91,0.33008202]
[1746605087768,0.30306869,607.22,605.91,0.33008202]
[1746605087971,0.32937533,607.21,605.91,0.33008202]
[1746605088169,0.30306869,607.2,605.91,0.33008202]
[1746605088967,0.28693695,607.19,605.91,0.33008202]
[1746605089367,0.30306869,607.18,605.91,0.33008202]
[1746605091873,0.6324603,607.18,605.91,0.33008202]
[1746605092075,0.32939703,607.17,605.91,0.33008202]
[1746605092272,0.30306869,607.16,605.91,0.33008202]
[1746605093673,0.32940788,607.15,605.91,0.33008202]
[1746605094071,0.30306869,607.14,605.91,0.33008202]
[1746605094376,0.32941874,607.13,605.91,0.33008202]
[1746605094871,0.30306869,607.12,605.91,0.33008202]
[1746605095077,0.32942959,607.11,605.91,0.33008202]
[1746605095475,0.30306869,607.1,605.91,0.33008202]
[1746605095877,0.32944044,607.09,605.91,0.33008202]
[1746605096378,0.30306869,607.08,605.91,0.33008202]
[1746605097976,0.28697481,607.07,605.91,0.33008202]
[1746605098383,0.30306869,607.06,605.91,0.33008202]
[1746605100782,0.28694996,607.05,605.91,0.33008202]
[1746605101180,0.30306869,607.04,605.91,0.33008202]
[1746605105089,0.28694996,607.05,605.91,0.33008202]
[1746605105288,0.30303287,607.03,605.91,0.33008202]
[1746605105487,0.30303287,607.04,605.91,0.33008202]
[1746605106891,0.30303287,607.08,605.91,0.33008202]
[1746605111092,0.32944044,607.09,605.91,0.33008202]
[1746605120294,0.30300721,607.08,605.91,0.33008202]
[1746605124792,0.32944044,607.09,605.91,0.33008202]
[1746605125199,0.32944044,607.09,605.91,0.86808202]
[1746605136405,0.3030501,607.08,605.91,0.86808202]
[1746605137209,0.32944044,607.09,605.91,0.86808202]
[1746605137411,0.30304324,607.08,605.91,0.86808202]
[1746605139112,0.30304324,607.08,605.91,1.44108202]
[1746605143214,0.32944044,607.09,605.91,1.44108202]
[1746605143514,0.3030202,607.08,605.91,1.44108202]
[1746605144414,0.32944044,607.09,605.91,1.44108202]
[1746605144813,0.30301376,607.08,605.91,1.44108202]
[1746605146110,0.32944044,607.09,605.91,1.44108202]
[1746605152822,0.30302121,607.08,605.91,1.44108202]
[1746605159527,0.30302121,607.08,605.91,2.18308202]
[1746605164029,0.30302121,607.08,605.91,2.82408202]
[1746605168325,0.32944044,607.09,605.91,2.82408202]
[1746605168529,0.30301112,607.08,605.91,2.82408202]
[1746605168930,0.32944044,607.09,605.91,2.82408202]
[1746605169131,0.30301169,607.07,605.91,2.82408202]
[1746605169425,0.30301169,607.08,605.91,2.82408202]
[1746605170126,0.32944044,607.09,605.91,2.82408202]
[1746605170631,0.30301296,607.08,605.91,2.82408202]
[1746605187938,0.32944044,607.09,605.91,2.82408202]
[1746605188443,0.30302657,607.08,605.91,2.82408202]
[1746605193048,0.32944044,607.09,605.91,2.82408202]
[1746605193246,0.30303137,607.08,605.91,2.82408202]
[1746605206067,0.28691211,607.07,605.91,2.82408202]
[1746605206668,0.30303137,607.06,605.91,2.82408202]
[1746605208390,0.28691211,607.07,605.91,2.82408202]
[1746605208768,0.30309584,607.06,605.91,2.82408202]
[1746605208969,0.28693577,607.06,605.91,2.82408202]
[1746605209267,0.30309584,607.05,605.91,2.82408202]
[1746605212074,0.59001031,607.05,605.91,2.82408202]
[1746605212572,0.30309584,607.04,605.91,2.82408202]
[1746605214870,0.30309584,607.08,605.91,2.82408202]
[1746605215069,0.28691921,607.05,605.91,2.82408202]
[1746605215577,0.30309584,607.04,605.91,2.82408202]
[1746605217871,0.30309584,607.08,605.91,2.82408202]
[1746605218077,0.28691447,607.05,605.91,2.82408202]
[1746605218577,0.30309584,607.04,605.91,2.82408202]
[1746605221479,0.28691447,607.05,605.91,2.82408202]
[1746605221778,0.30305903,607.04,605.91,2.82408202]
[1746605224079,0.28691447,607.05,605.91,2.82408202]
[1746605226279,0.30306709,607.04,605.91,2.82408202]
[1746605227180,0.30306709,607.08,605.91,2.82408202]
[1746605227881,0.28691447,607.07,605.91,2.82408202]
[1746605228475,0.30306709,607.06,605.91,2.82408202]
[1746605230183,0.28691684,607.05,605.91,2.82408202]
[1746605230575,0.30306709,607.04,605.91,2.82408202]
[1746605232181,0.28691684,607.05,605.91,2.82408202]
[1746605232682,0.32944044,607.09,605.91,2.82408202]
[1746605233182,0.28693577,607.04,605.91,2.82408202]
[1746605235279,0.30312534,607.03,605.91,2.82408202]
[1746605235883,0.30312534,607.08,605.91,2.82408202]
[1746605236079,0.28696061,607.02,605.91,2.82408202]
[1746605236580,0.30312534,607.01,605.91,2.82408202]
[1746605238887,0.28696298,607.0,605.91,2.82408202]
[1746605239286,0.30312534,606.99,605.91,2.82408202]
[1746605241890,0.28695588,606.98,605.91,2.82408202]
[1746605242291,0.30312534,606.97,605.91,2.82408202]
[1746605242892,0.28695588,606.98,605.91,2.82408202]
[1746605243289,0.30312829,606.97,605.91,2.82408202]
[1746605244994,0.30312829,607.08,605.91,2.82408202]
[1746605245196,0.28695824,606.96,605.91,2.82408202]
[1746605245393,0.32945129,607.07,605.91,2.82408202]
[1746605245694,0.30312829,607.06,605.91,2.82408202]
[1746605245891,0.32946215,607.05,605.91,2.82408202]
[1746605246392,0.30312829,607.04,605.91,2.82408202]
[1746605246696,0.59007707,607.04,605.91,2.82408202]
[1746605247095,0.30312829,607.03,605.91,2.82408202]
[1746605252502,0.28694878,607.04,605.91,2.82408202]
[1746605252701,0.3030739,607.03,605.91,2.82408202]
[1746605254398,0.3030739,607.04,605.91,2.82408202]
[1746605255901,0.61638254,607.05,605.91,2.82408202]
[1746605256205,0.3030903,607.04,605.91,2.82408202]
[1746605257201,0.28693577,607.03,605.91,2.82408202]
[1746605257507,0.3030903,607.02,605.91,2.82408202]